fUST/lending_fUST_20250405
["ID","MTS","AMOUNT","RATE_DAILY","PERIOD"]
[357159156,1743816640774,-500.0,0.00023587,2]
[357159157,1743816640784,-500.0,0.00023705,2]
[357159158,1743816640795,-572.3680392,0.00023738,2]
[357159159,1743816640807,-355.9410457,0.00023781,2]
[357159160,1743816640818,-500.0,0.00023801,2]
[357159161,1743816640828,-500.0,0.00023878,2]
[357159162,1743816640838,-151.0,0.000239,5]
[357159163,1743816640848,-766.93554691,0.00023904,2]
[357159164,1743816640858,-500.0,0.00023924,2]
[357159165,1743816640868,-166.6842139,0.00023945,2]
[357159166,1743816640892,-500.0,0.00023964,2]
[357159167,1743816640904,-1003.542068,0.00023973,2]
[357159168,1743816640916,-195.95465285,0.00023973,2]
[357159169,1743816640931,-500.0,0.00023973,2]
[357159170,1743816640943,-500.0,0.00023973,2]
[357159171,1743816640955,-500.0,0.00023973,2]
[357159172,1743816640966,-500.0,0.00023973,2]
[357159173,1743816640978,-500.0,0.00023973,2]
[357159174,1743816640990,-500.0,0.00023973,2]
[357159175,1743816641001,-416.42020204,0.00023973,2]
[357159176,1743816641012,-500.0,0.00023973,2]
[357159177,1743816641024,-500.0,0.00023975,2]
[357159178,1743816641035,-107810.20861216,0.00024,2]
[357159179,1743816641052,-134012.14326872,0.00024,2]
[357159196,1743816643107,-349.99771275,0.00020297,2]
[357159197,1743816643207,-150.00228725,0.00020297,2]
[357159198,1743816643219,-315.07956149,0.00020571,2]
[357159199,1743816643230,-186.69814626,0.00024,2]
[357159209,1743816646254,-208.55259385,0.00020297,2]
[357159210,1743816646265,-430.5920966,0.00023738,2]
[357159211,1743816646274,-125844.03761104,0.00024,2]
[357159212,1743816646284,-500.0,0.00024109,2]
[357159213,1743816646294,-500.0,0.00024109,2]
[357159214,1743816646303,-500.0,0.00024109,2]
[357159215,1743816646313,-284.31000044,0.00024109,2]
[357159216,1743816646322,-500.0,0.00024174,2]
[357159217,1743816646332,-2787.83595557,0.00024176,5]
[357159218,1743816646341,-500.0,0.00024254,2]
[357159219,1743816646351,-500.0,0.00024277,2]
[357159220,1743816646360,-151.0,0.000243,7]
[357159221,1743816646371,-800.0,0.00024387,2]
[357159222,1743816646385,-151.0,0.000244,6]
[357159223,1743816646395,-800.0,0.00024442,2]
[357159224,1743816646404,-151.0,0.00024472,2]
[357159225,1743816646414,-800.0,0.00024473,2]
[357159226,1743816646424,-1426.658795,0.0002448,5]
[357159227,1743816646434,-78068.0548519,0.000245,5]
[357159228,1743816646447,-500.0,0.000245,7]
[357159229,1743816646457,-500.0,0.000245,7]
[357159230,1743816646467,-500.0,0.000245,7]
[357159231,1743816646477,-500.0,0.000245,7]
[357159232,1743816646490,-612.77067494,0.000245,7]
[357159233,1743816646501,-357.0,0.000245,3]
[357159234,1743816646512,-403.70551836,0.000245,3]
[357159235,1743816646521,-1000.0,0.000245,5]
[357159236,1743816646531,-800.0,0.000245,2]
[357159237,1743816646542,-151.0,0.000245,7]
[357159238,1743816646552,-1002.604154,0.000245,2]
[357159239,1743816646562,-546.66168264,0.00024554,2]
[357159240,1743816646572,-512.569,0.00024565,2]
[357159241,1743816646583,-2200.0,0.00024565,2]
[357159242,1743816646596,-800.0,0.00024588,2]
[357159243,1743816646605,-800.0,0.00024589,2]
[357159244,1743816646614,-800.0,0.00024601,2]
[357159245,1743816646624,-800.0,0.00024606,2]
[357159246,1743816646633,-253.33831736,0.00024645,2]
[357159247,1743816646643,-20057.94912606,0.00024651,2]
[357159248,1743816646652,-200.0,0.00024658,15]
[357159249,1743816646662,-179.2075023,0.00024658,2]
[357159250,1743816646671,-800.0,0.0002467,2]
[357159251,1743816646680,-800.0,0.00024681,2]
[357159252,1743816646690,-800.0,0.00024729,2]
[357159253,1743816646699,-500.0,0.00024747,2]
[357159254,1743816646708,-34790.30358913,0.0002475,2]
[357159255,1743816646720,-276.01553022,0.0002475,2]
[357159256,1743816646731,-437.645,0.0002475,2]
[357159257,1743816646742,-672.40435425,0.0002475,2]
[357159258,1743816646751,-158.23514575,0.0002475,2]
[357159259,1743816646762,-6741.13307684,0.0002475,2]
[357159260,1743816646777,-4796.04288769,0.0002475,2]
[357159261,1743816646788,-2830.96431073,0.0002475,2]
[357159279,1743817607956,183.362707,0.00025,120]
[357159321,1743817838103,-450.35332967,0.000199,2]
[357159323,1743817838112,-704.95132021,0.0002,3]
[357159324,1743817838122,-160.0,0.00020149,2]
[357159325,1743817838131,-781.25,0.00020149,2]
[357159326,1743817838140,-160.0,0.00020149,2]
[357159327,1743817838150,-419.12848707,0.00020149,2]
[357159328,1743817838159,-500.0,0.00020173,2]
[357159329,1743817838168,-312.05635805,0.00020173,2]
[357159330,1743817838187,-187.94364195,0.00020173,2]
[357159331,1743817838197,-180.70897161,0.00020184,2]
[357159332,1743817838206,-300.0,0.00020197,2]
[357159333,1743817838216,-500.0,0.00020198,2]
[357159334,1743817838226,-500.0,0.00020198,2]
[357159335,1743817838235,-221.17579928,0.00020198,2]
[357159336,1743817838247,-278.82420072,0.00020198,2]
[357159337,1743817838256,-423.46355835,0.00020198,2]
[357159345,1743817840392,-86.74133913,0.00020198,2]
[357159346,1743817840403,-500.0,0.00020198,2]
[357159347,1743817840414,-500.0,0.00020198,2]
[357159348,1743817840426,-500.0,0.00020198,2]
[357159349,1743817840450,-219.6612709,0.00020198,2]
[357159350,1743817840464,-50.43931453,0.00020198,2]
[357159351,1743817840481,-377.71169616,0.00020198,2]
[357159352,1743817840493,-500.0,0.00020198,2]
[357159353,1743817840505,-289.68328176,0.00020198,2]
[357159354,1743817840517,-170.15483346,0.00020198,2]
[357159355,1743817840531,-329.84516654,0.00020198,2]
[357159356,1743817840543,-91.02526882,0.00020198,2]
[357159357,1743817840558,-408.97473118,0.00020198,2]
[357159358,1743817840570,-500.0,0.00020198,2]
[357159359,1743817840582,-500.0,0.00020198,2]
[357159360,1743817840594,-500.0,0.00020198,2]
[357159361,1743817840606,-500.0,0.00020198,2]
[357159362,1743817840619,-500.0,0.00020198,2]
[357159363,1743817840630,-500.0,0.00020198,2]
[357159364,1743817840642,-500.0,0.00020198,2]
[357159365,1743817840655,-500.0,0.00020198,2]
[357159366,1743817840666,-500.0,0.00020198,2]
[357159367,1743817840678,-500.0,0.00020198,2]
[357159368,1743817840689,-220.45094287,0.00020198,2]
[357159369,1743817840699,-500.0,0.00020198,2]
[357159370,1743817840710,-500.0,0.00020198,2]
[357159371,1743817840723,-500.0,0.00020198,2]
[357159372,1743817840735,-500.0,0.00020198,2]
[357159373,1743817840748,-500.0,0.00020198,2]
[357159374,1743817840760,-500.0,0.00020198,2]
[357159375,1743817840772,-500.0,0.00020198,2]
[357159376,1743817840783,-500.0,0.00020198,2]
[357159377,1743817840795,-500.0,0.00020198,2]
[357159378,1743817840806,-500.0,0.00020198,2]
[357159379,1743817840818,-500.0,0.00020198,2]
[357159380,1743817840829,-500.0,0.00020198,2]
[357159381,1743817840840,-500.0,0.00020198,2]
[357159382,1743817840851,-500.0,0.00020198,2]
[357159383,1743817840862,-500.0,0.00020198,2]
[357159384,1743817840871,-500.0,0.00020198,2]
[357159385,1743817840882,-500.0,0.00020198,2]
[357159386,1743817840892,-500.0,0.00020198,2]
[357159387,1743817840902,-500.0,0.00020198,2]
[357159388,1743817840914,-554.86415091,0.00020198,2]
[357159389,1743817840929,-1982.21017504,0.00020199,2]
[357159400,1743817843226,-621.92,0.00020199,2]
[357159405,1743817846448,-39203.95212424,0.00020199,2]
[357159447,1743819032329,-501.09753947,0.00017598,2]
[357159449,1743819032340,-500.0,0.00018524,2]
[357159451,1743819032349,-500.0,0.00019499,2]
[357159453,1743819032359,-223.11544619,0.00020058,2]
[357159455,1743819032373,-936.6422968,0.00020058,2]
[357159458,1743819032383,-500.0,0.00020073,2]
[357159460,1743819032392,-500.0,0.00020073,2]
[357159462,1743819032402,-500.0,0.00020073,2]
[357159464,1743819032411,-200.0,0.00020087,2]
[357159466,1743819032420,-328.47967709,0.00020098,2]
[357159468,1743819032430,-225.95126713,0.00020098,2]
[357159470,1743819032439,-500.0,0.00020098,2]
[357159472,1743819032449,-468.14199316,0.00020098,2]
[357159473,1743819032459,-343.3117671,0.00020098,2]
[357159474,1743819032469,-10000.0,0.00020098,2]
[357159475,1743819032478,-373.37078821,0.00020098,2]
[357159476,1743819032487,-494.31588274,0.00020098,2]
[357159477,1743819032497,-500.0,0.00020098,2]
[357159478,1743819032506,-352.29342464,0.00020098,2]
[357159479,1743819032515,-220.11211189,0.00020098,2]
[357159480,1743819032524,-500.0,0.00020098,2]
[357159481,1743819032533,-500.0,0.00020098,2]
[357159483,1743819032543,-305.1152919,0.00020098,2]
[357159485,1743819032553,-9833.57540551,0.00020099,2]
[357159487,1743819032568,-27324.10392125,0.00020099,2]
[357159489,1743819032578,-160.0,0.00020149,2]
[357159491,1743819032588,-160.0,0.00020149,2]
[357159492,1743819032597,-781.25,0.00020149,2]
[357159494,1743819032607,-419.12848707,0.00020152,2]
[357159496,1743819032616,-180.59093302,0.00020184,2]
[357159497,1743819032626,-504.34854595,0.0002025,2]
[357159499,1743819032635,-506.05134703,0.00020297,2]
[357159501,1743819032644,-169.56360695,0.00020297,2]
[357159503,1743819032654,-517.24372721,0.00020297,2]
[357159505,1743819032663,-500.0,0.00020297,2]
[357159507,1743819032673,-512.44550146,0.00020297,2]
[357159508,1743819032682,-157.99085514,0.00020297,2]
[357159510,1743819032691,-156.09283022,0.00020297,2]
[357159512,1743819032700,-500.0,0.00020297,2]
[357159513,1743819032710,-188.84869763,0.00020372,2]
[357159514,1743819032719,-500.0,0.00020372,2]
[357159515,1743819032728,-500.0,0.00020372,2]
[357159516,1743819032738,-500.0,0.00020474,2]
[357159518,1743819032750,-501.61398078,0.00020571,2]
[357159520,1743819032762,-500.0,0.00020571,2]
[357159522,1743819032774,-281.19206642,0.00020646,2]
[357159525,1743819032787,-500.0,0.00020646,2]
[357159527,1743819032798,-500.0,0.00020845,2]
[357159529,1743819032810,-500.0,0.0002092,2]
[357159531,1743819032822,-500.0,0.00021119,2]
[357159532,1743819032831,-1155.60074347,0.00021194,3]
[357159533,1743819032841,-5796.9410344,0.00021194,3]
[357159534,1743819032853,-500.0,0.00021194,2]
[357159535,1743819032864,-500.0,0.00021393,2]
[357159536,1743819032876,-210.00410394,0.00021456,2]
[357159537,1743819032887,-500.0,0.00021468,2]
[357159538,1743819032898,-500.0,0.00021498,2]
[357159539,1743819032908,-500.0,0.00021667,2]
[357159540,1743819032921,-500.0,0.00021742,2]
[357159541,1743819032933,-2494.48042333,0.000219,3]
[357159542,1743819032944,-500.0,0.00021941,2]
[357159543,1743819032956,-163.0,0.00022,2]
[357159544,1743819032967,-500.0,0.00022016,2]
[357159545,1743819032978,-500.0,0.00022215,2]
[357159546,1743819032988,-500.0,0.0002229,2]
[357159547,1743819032999,-500.0,0.00022489,2]
[357159548,1743819033010,-2494.48042333,0.00022521,4]
[357159549,1743819033022,-500.0,0.00022564,2]
[357159550,1743819033035,-500.0,0.00022763,2]
[357159551,1743819033046,-500.0,0.00022838,2]
[357159552,1743819033059,-1159.75774296,0.00022893,2]
[357159553,1743819033072,-151.1,0.00022926,2]
[357159554,1743819033084,-163.0,0.00023014,2]
[357159555,1743819033095,-500.0,0.00023037,2]
[357159556,1743819033107,-500.0,0.00023112,2]
[357159557,1743819033119,-484.34530552,0.00023138,3]
[357159558,1743819033137,-2494.48042333,0.00023141,4]
[357159559,1743819033157,-500.0,0.00023311,2]
[357159560,1743819033172,-197.70564692,0.00023386,2]
[357159561,1743819033186,-500.0,0.00023585,2]
[357159562,1743819033198,-2494.48042333,0.00023762,4]
[357159563,1743819033212,-712.69741256,0.00023853,2]
[357159564,1743819033223,-500.0,0.00023859,2]
[357159565,1743819033235,-180.721812,0.000239,2]
[357159566,1743819033247,-159.4354456,0.00023918,2]
[357159567,1743819033258,-162.1223994,0.00023918,2]
[357159568,1743819033269,-153.931504,0.00023918,2]
[357159569,1743819033280,-153.0,0.00023918,2]
[357159570,1743819033290,-156.5144398,0.00023918,2]
[357159571,1743819033304,-153.0,0.00023918,2]
[357159572,1743819033317,-156.5144398,0.00023918,2]
[357159573,1743819033329,-155.9456742,0.00023918,2]
[357159574,1743819033341,-1719.0,0.00024,2]
[357159575,1743819033354,-443.0754565,0.00024007,2]
[357159576,1743819033367,-168.0,0.00024007,2]
[357159577,1743819033379,-168.0,0.00024007,2]
[357159578,1743819033391,-168.0,0.00024007,2]
[357159579,1743819033403,-168.0,0.00024007,2]
[357159580,1743819033415,-276.12685972,0.00024007,2]
[357159581,1743819033428,-500.0,0.00024133,2]
[357159582,1743819033439,-166.0,0.00024164,2]
[357159583,1743819033452,-2494.48042333,0.00024383,5]
[357159584,1743819033466,-500.0,0.00024407,2]
[357159585,1743819033479,-200.0,0.00024658,15]
[357159586,1743819033492,-500.0,0.00024681,2]
[357159587,1743819033504,-338.4606408,0.0002469,2]
[357159588,1743819033516,-202.77829724,0.00024749,2]
[357159589,1743819033529,-163227.34632048,0.0002475,2]
[357159590,1743819033539,-508.7832032,0.00024773,2]
[357159591,1743819033550,-7679.31,0.000248,2]
[357159592,1743819033560,-929.488008,0.000248,2]
[357159593,1743819033571,-3908.73594994,0.0002485,2]
[357159594,1743819033581,-5274.28,0.000249,14]
[357159595,1743819033592,-1769.86,0.000249,14]
[357159596,1743819033603,-155.97,0.000249,31]
[357159597,1743819033615,-155.97,0.000249,31]
[357159598,1743819033628,-155.97,0.000249,31]
[357159599,1743819033639,-155.97,0.000249,31]
[357159600,1743819033652,-104760.39744734,0.000249,2]
[357159629,1743819038190,-407.394,0.00022926,2]
[357159631,1743819038202,-485.35118087,0.00023761,2]
[357159715,1743819040443,-14.64881913,0.00023761,2]
[357159717,1743819040453,-316.35118087,0.00023761,2]
[357159839,1743819043353,-183.64881913,0.00023761,2]
[357159840,1743819043362,-246.82728001,0.00023761,2]
[357159841,1743819043375,-103.0173815,0.00023761,2]
[357159842,1743819043384,-419.41559588,0.00023761,2]
[357159873,1743819046449,-623.17304403,0.00020297,2]
[357159875,1743819046458,-80.58440412,0.00023761,2]
[357159876,1743819046467,-229.45211649,0.00023761,2]
[357159878,1743819046477,-2936.84058842,0.000249,2]
[357159880,1743819046488,-21530.89600729,0.000249,2]
[357159882,1743819046499,-15889.85751945,0.000249,2]
[357159950,1743820118914,170.06630803,0.00025,120]
[357160004,1743820232566,-243.8518109,0.00019018,3]
[357160005,1743820232576,-507.47706336,0.00020098,2]
[357160006,1743820232586,-781.25,0.00020251,2]
[357160007,1743820232595,-12522.71377557,0.00020251,2]
[357160008,1743820232605,-10000.0,0.00020254,2]
[357160009,1743820232614,-500.0,0.00020296,2]
[357160010,1743820232624,-501.81517943,0.00020296,2]
[357160011,1743820232634,-500.0,0.00020296,2]
[357160012,1743820232643,-501.9425918,0.00020297,2]
[357160013,1743820232655,-501.95994114,0.00020297,2]
[357160014,1743820232665,-577.66486322,0.00020297,2]
[357160015,1743820232675,-504.14221432,0.00020297,2]
[357160016,1743820232685,-412.82941881,0.00020297,2]
[357160017,1743820232695,-500.0,0.00020297,2]
[357160018,1743820232705,-501.78163703,0.00020297,2]
[357160019,1743820232714,-500.0,0.00020297,2]
[357160020,1743820232726,-500.0,0.00020369,2]
[357160021,1743820232736,-507.8348009,0.00020369,2]
[357160022,1743820232746,-523.00338944,0.00020369,2]
[357160023,1743820232755,-506.58187077,0.00020369,2]
[357160024,1743820232765,-500.0,0.00020369,2]
[357160025,1743820232775,-505.13206804,0.00020371,2]
[357160026,1743820232784,-513.03902622,0.00020371,2]
[357160027,1743820232793,-502.73574548,0.00020371,2]
[357160028,1743820232803,-621.96317785,0.00020371,2]
[357160030,1743820232812,-502.64102683,0.00020371,2]
[357160031,1743820232822,-523.7268771,0.00020371,2]
[357160032,1743820232831,-508.06128245,0.00020371,2]
[357160033,1743820232841,-507.40428331,0.00020371,2]
[357160034,1743820232850,-502.04655239,0.00020371,2]
[357160035,1743820232859,-510.7842302,0.00020371,2]
[357160036,1743820232870,-500.0,0.00020371,2]
[357160037,1743820232879,-513.81169032,0.00020371,2]
[357160038,1743820232889,-506.23103427,0.00020371,2]
[357160039,1743820232898,-500.0,0.00020371,2]
[357160040,1743820232909,-508.52613734,0.00020371,2]
[357160041,1743820232919,-500.0,0.00020371,2]
[357160042,1743820232928,-514.64684222,0.00020371,2]
[357160043,1743820232938,-505.55295621,0.00020371,2]
[357160044,1743820232947,-500.0,0.0002057,2]
[357160045,1743820232956,-346.24127578,0.0002057,2]
[357160046,1743820232966,-608.77720663,0.00020643,2]
[357160047,1743820232975,-500.0,0.00020645,2]
[357160048,1743820232985,-216.26229325,0.00020645,2]
[357160049,1743820232994,-500.0,0.00020645,2]
[357160050,1743820233004,-500.0,0.00020722,2]
[357160051,1743820233013,-503.77479994,0.00020722,2]
[357160052,1743820233023,-500.0,0.00020844,2]
[357160053,1743820233033,-500.0,0.00020919,2]
[357160054,1743820233042,-500.0,0.00021118,2]
[357160055,1743820233051,-500.0,0.00021193,2]
[357160056,1743820233062,-500.0,0.00021392,2]
[357160057,1743820233071,-500.0,0.00021467,2]
[357160058,1743820233081,-503.72565078,0.00021511,2]
[357160059,1743820233091,-500.0,0.00021619,2]
[357160060,1743820233101,-502.30870586,0.00021619,2]
[357160061,1743820233111,-517.23064214,0.00021619,2]
[357160062,1743820233121,-500.0,0.00021666,2]
[357160063,1743820233131,-500.0,0.00021741,2]
[357160064,1743820233141,-500.0,0.00021816,2]
[357160065,1743820233151,-504.24154513,0.00021816,2]
[357160066,1743820233161,-507.591762,0.00021816,2]
[357160067,1743820233171,-500.0,0.00021816,2]
[357160068,1743820233182,-500.0,0.00021816,2]
[357160069,1743820233191,-504.42241159,0.00021816,2]
[357160070,1743820233201,-502.29807316,0.00021816,2]
[357160071,1743820233211,-506.89444511,0.00021816,2]
[357160072,1743820233220,-501.68881486,0.00021865,2]
[357160073,1743820233230,-520.74493266,0.00021865,2]
[357160074,1743820233240,-2078.73368635,0.000219,3]
[357160075,1743820233250,-500.0,0.0002194,2]
[357160076,1743820233260,-1333.0,0.00022,2]
[357160077,1743820233271,-500.0,0.00022015,2]
[357160078,1743820233280,-290.45439823,0.000221,2]
[357160079,1743820233290,-500.0,0.00022214,2]
[357160080,1743820233300,-500.0,0.00022289,2]
[357160081,1743820233310,-419.20823938,0.00022341,2]
[357160082,1743820233320,-160.0,0.00022341,2]
[357160083,1743820233330,-509.1,0.00022454,3]
[357160084,1743820233342,-231.03220742,0.00022463,2]
[357160085,1743820233352,-500.0,0.00022463,2]
[357160086,1743820233362,-500.0,0.00022463,2]
[357160087,1743820233373,-247.61961953,0.00022463,2]
[357160088,1743820233385,-27440.59284743,0.00022464,2]
[357160089,1743820233398,-208332.30922225,0.00022464,2]
[357160090,1743820233409,-492.83768434,0.00022473,2]
[357160091,1743820233419,-503.26500501,0.00022473,2]
[357160092,1743820233429,-501.87497064,0.00022473,2]
[357160093,1743820233439,-528.50717931,0.00022488,2]
[357160094,1743820233449,-2078.7336861,0.00022521,4]
[357160095,1743820233459,-500.0,0.00022563,2]
[357160096,1743820233469,-198.30030311,0.0002273,2]
[357160097,1743820233478,-500.0,0.00022837,2]
[357160098,1743820233488,-222.35238082,0.000229,2]
[357160099,1743820233499,-222.35238083,0.000229,2]
[357160100,1743820233509,-246.1549311,0.00023,2]
[357160101,1743820233519,-500.0,0.00023111,2]
[357160102,1743820233529,-2078.7336861,0.00023141,4]
[357160103,1743820233539,-401.0,0.00023241,2]
[357160104,1743820233549,-869.81830722,0.00023246,2]
[357160105,1743820233559,-500.0,0.00023385,2]
[357160106,1743820233569,-500.0,0.00023509,2]
[357160107,1743820233579,-500.0,0.00023572,2]
[357160108,1743820233589,-500.0,0.00023659,2]
[357160109,1743820233599,-2078.7336861,0.00023762,4]
[357160110,1743820233608,-500.0,0.00023933,2]
[357160111,1743820233618,-500.0,0.00023966,2]
[357160112,1743820233628,-500.0,0.00024038,2]
[357160113,1743820233638,-527.51344644,0.00024129,2]
[357160114,1743820233651,-372.5643405,0.00024152,2]
[357160115,1743820233660,-500.0,0.00024205,2]
[357160116,1743820233669,-500.0,0.00024207,2]
[357160117,1743820233679,-2078.7336861,0.00024383,5]
[357160118,1743820233689,-500.0,0.00024481,2]
[357160119,1743820233699,-505.00052443,0.0002454,2]
[357160120,1743820233708,-500.0,0.0002465,2]
[357160121,1743820233718,-200.0,0.00024658,15]
[357160122,1743820233728,-4358.62,0.000247,14]
[357160123,1743820233737,-1719.77,0.000247,14]
[357160124,1743820233747,-151.0,0.000247,9]
[357160125,1743820233758,-26440.49278537,0.00024701,2]
[357160126,1743820233766,-175.90696021,0.00024755,2]
[357160127,1743820233775,-565.65827641,0.00024773,2]
[357160128,1743820233785,-500.0,0.00024777,2]
[357160129,1743820233795,-1115.3856096,0.000248,2]
[357160130,1743820233805,-2602.5664224,0.0002489,2]
[357160131,1743820233814,-577.80037174,0.000249,3]
[357160132,1743820233824,-2898.4705172,0.000249,3]
[357160133,1743820233834,-151.0,0.000249,9]
[357160134,1743820233844,-531.6261837,0.000249,7]
[357160135,1743820233854,-155.98,0.000249,31]
[357160136,1743820233863,-155.98,0.000249,31]
[357160137,1743820233873,-155.98,0.000249,31]
[357160138,1743820233882,-155.98,0.000249,31]
[357160139,1743820233893,-155.98,0.000249,31]
[357160140,1743820233903,-155.98,0.000249,31]
[357160141,1743820233913,-155.98,0.000249,31]
[357160142,1743820233922,-362970.12837018,0.000249,2]
[357160170,1743820238396,-318869.90989382,0.000249,2]
[357160171,1743820238406,-156.910851,0.000249,31]
[357160172,1743820238415,-156.910851,0.000249,2]
[357160173,1743820238424,-156.910851,0.000249,14]
[357160174,1743820238433,-2000.0,0.0002495,7]
[357160175,1743820238443,-501.18489851,0.00024973,2]
[357160176,1743820238452,-262.9264731,0.00024973,2]
[357160177,1743820238461,-500.82799131,0.00024973,2]
[357160178,1743820238471,-500.78644259,0.00024973,2]
[357160179,1743820238481,-500.0,0.00024973,2]
[357160180,1743820238490,-500.0,0.00024973,2]
[357160181,1743820238499,-500.0,0.00024973,2]
[357160182,1743820238508,-500.0,0.00024973,2]
[357160183,1743820238522,-500.0,0.00024973,2]
[357160184,1743820238532,-508.01507472,0.00024977,2]
[357160185,1743820238541,-13003.76,0.00025,14]
[357160186,1743820238550,-2000.0,0.00025,2]
[357160187,1743820238560,-2000.0,0.00025,2]
[357160188,1743820238570,-2000.0,0.00025,2]
[357160189,1743820238585,-496.13994847,0.00025,7]
[357160190,1743820238598,-2000.0,0.00025,7]
[357160191,1743820238608,-2000.0,0.00025,7]
[357160192,1743820238617,-2018.0,0.00025,4]
[357160193,1743820238628,-1087.16,0.00025,2]
[357160194,1743820238638,-530.94244263,0.00025,7]
[357160195,1743820238657,-507.18305169,0.00025,2]
[357160196,1743820238670,-20258.19333916,0.00025,7]
[357160197,1743820238679,-10060.29388514,0.00025,2]
[357160198,1743820238689,-419.12848707,0.00025,7]
[357160199,1743820238698,-151.0,0.00025,5]
[357160200,1743820238707,-1945.559884,0.00025,5]
[357160201,1743820238717,-194.81333512,0.00025,14]
[357160202,1743820238726,-564.89,0.00025,7]
[357160203,1743820238735,-5999.99999985,0.00025,2]
[357160204,1743820238744,-500.0,0.00025,2]
[357160205,1743820238753,-200.9049303,0.00025,14]
[357160206,1743820238763,-204.04654677,0.00025,14]
[357160207,1743820238772,-153.69835178,0.00025,14]
[357160208,1743820238781,-500.0,0.00025,14]
[357160209,1743820238790,-500.0,0.00025,14]
[357160210,1743820238800,-500.0,0.00025,14]
[357160211,1743820238809,-500.0,0.00025,14]
[357160212,1743820238818,-167.0,0.00025,2]
[357160213,1743820238827,-2078.7336861,0.00025003,5]
[357160214,1743820238836,-151.08686597,0.00025027,14]
[357160215,1743820238845,-150.06277938,0.00025027,14]
[357160216,1743820238854,-150.03483545,0.00025027,14]
[357160217,1743820238863,-500.0,0.00025027,2]
[357160218,1743820238873,-500.0,0.00025027,14]
[357160219,1743820238882,-500.0,0.00025027,14]
[357160220,1743820238891,-901.82578564,0.00025027,14]
[357160221,1743820238900,-500.0,0.00025027,14]
[357160222,1743820238909,-150.59958688,0.00025027,14]
[357160223,1743820238919,-150.50200773,0.00025027,14]
[357160224,1743820238928,-500.0,0.00025055,2]
[357160225,1743820238938,-500.0,0.00025055,14]
[357160226,1743820238947,-622.61331218,0.00025055,14]
[357160227,1743820238957,-500.0,0.00025055,14]
[357160228,1743820238967,-272.40206906,0.00025055,14]
[357160229,1743820238976,-501.02317516,0.00025082,2]
[357160230,1743820238986,-500.0,0.00025082,14]
[357160231,1743820238995,-151.54313785,0.00025082,14]
[357160232,1743820239005,-553.16246703,0.00025082,14]
[357160233,1743820239014,-500.0,0.0002511,14]
[357160234,1743820239024,-500.0,0.00025137,14]
[357160235,1743820239033,-250.0,0.0002515,100]
[357160236,1743820239043,-500.0,0.00025164,14]
[357160237,1743820239052,-500.0,0.00025192,14]
[357160238,1743820239062,-160.0,0.0002521,3]
[357160239,1743820239071,-161.02823367,0.0002521,5]
[357160240,1743820239080,-500.0,0.00025219,14]
[357160241,1743820239090,-500.0,0.00025247,14]
[357160242,1743820239099,-500.0,0.00025274,14]
[357160243,1743820239108,-155.98,0.000253,31]
[357160244,1743820239118,-155.98,0.000253,31]
[357160245,1743820239127,-155.98,0.000253,31]
[357160246,1743820239137,-155.98,0.000253,31]
[357160247,1743820239147,-500.0,0.00025301,14]
[357160248,1743820239156,-500.0,0.00025329,14]
[357160249,1743820239166,-500.0,0.00025356,14]
[357160250,1743820239176,-500.0,0.00025384,14]
[357160251,1743820239186,-500.0,0.00025411,14]
[357160252,1743820239196,-500.0,0.00025438,14]